bitfinex/quotes_SOLUSD_20220228
["timestamp","ask_amount","ask_price","bid_price","bid_amount"]
[1646026054576,1.69546568,86.889,86.821,4.605]
[1646026054772,17.2861,86.87,86.804,24.6976]
[1646026054972,4.606,86.869,86.804,24.6976]
[1646026055173,6.43903099,86.869,86.804,24.6976]
[1646026055373,6.0,86.868,86.804,59.921522]
[1646026055571,4.606,86.867,86.777,4.606]
[1646026055774,1.83334343,86.865,86.77,21.8956]
[1646026055973,4.607,86.864,86.77,21.8956]
[1646026056172,9.35083793,86.864,86.77,17.2886]
[1646026056374,1.3921908,86.862,86.77,17.2886]
[1646026056573,17.2871,86.86,86.771,58.73511823]
[1646026056773,6.40539996,86.859,86.772,6.0]
[1646026056978,4.607,86.859,86.772,8.55539904]
[1646026057275,2.74678921,86.859,86.772,8.55539904]
[1646026057475,17.2909,86.84,86.771,58.73511823]
[1646026057773,4.608,86.839,86.771,58.73511823]
[1646026057974,115.6,86.853,86.771,58.73511823]
[1646026058174,115.6,86.851,86.771,58.73511823]
[1646026058373,115.6,86.849,86.771,58.73511823]
[1646026058574,115.6,86.847,86.771,58.73511823]
[1646026058773,17.2938,86.83,86.771,58.73511823]
[1646026058973,4.608,86.829,86.771,58.73511823]
[1646026059476,4.608,86.838,86.771,58.73511823]
[1646026060475,17.2953,86.82,86.771,58.73511823]
[1646026060876,17.2953,86.82,86.76,2.53420016]
[1646026061076,17.2953,86.82,86.761,6.0]
[1646026061274,7.35478921,86.819,86.759,4.607]
[1646026061477,17.2991,86.81,86.759,4.607]
[1646026061778,1.81417716,86.808,86.759,4.607]
[1646026061979,10.609,86.807,86.759,4.607]
[1646026062279,13.35578921,86.807,86.759,4.607]
[1646026062476,17.3024,86.8,86.71,20.35704106]
[1646026062677,17.3024,86.8,86.711,8.49679286]
[1646026062876,2.74678921,86.799,86.711,8.49679286]
[1646026063277,4.61,86.798,86.711,8.49679286]
[1646026063476,4.61,86.798,86.713,2.30553062]
[1646026063677,4.61,86.798,86.714,6.0]
[1646026064480,17.3019,86.79,86.714,6.0]
[1646026065489,6.0,86.789,86.714,6.0]
[1646026065788,17.3029,86.78,86.714,6.0]
[1646026068594,2.74678921,86.779,86.702,2.74586842]
[1646026068811,38.27948143,86.779,86.684,2.74678921]
[1646026068993,17.3101,86.76,86.666,2.76690685]
[1646026069191,4.612,86.759,86.666,2.76690685]
[1646026069391,34.12438654,86.759,86.666,2.76690685]
[1646026069591,29.51238654,86.758,86.667,48.79299004]
[1646026069792,4.612,86.757,86.668,2.62830704]
[1646026070095,4.612,86.757,86.668,8.62830704]
[1646026070292,115.6,86.755,86.668,8.62830704]
[1646026070592,115.6,86.739,86.645,3.11882861]
[1646026070793,115.6,86.739,86.614,112.6]
[1646026070794,115.6,86.729,86.636,2.27915928]
[1646026070995,120.214,86.728,86.615,69.13938059]
[1646026071194,1.69886341,86.727,86.585,23.4122]
[1646026071395,4.614,86.726,86.597,2.68438985]
[1646026071596,122.96078921,86.726,86.598,56.41705187]
[1646026071794,115.6,86.724,86.599,2.78652041]
[1646026072097,17.3262,86.68,86.599,2.78652041]
[1646026072294,6.44064295,86.679,86.598,56.41705187]
[1646026072494,1.37831253,86.678,86.535,112.6]
[1646026072698,4.618,86.677,86.54,2.32524199]
[1646026072994,4.618,86.677,86.526,17.505]
[1646026072995,1.5154118,86.675,86.527,3.04322565]
[1646026073195,14.05,86.66,86.527,3.04322565]
[1646026073393,17.3356,86.63,86.528,60.91634276]
[1646026073593,17.3356,86.63,86.53,14.05]
[1646026073798,4.62,86.649,86.535,112.6]
[1646026073995,4.619,86.669,86.536,9.0714334]
[1646026074197,4.618,86.676,86.55,14.05]
[1646026074400,6.30727559,86.676,86.551,6.0]
[1646026074595,17.33,86.66,86.551,6.0]
[1646026074797,4.618,86.659,86.551,8.4575829]
[1646026074995,32.17678741,86.659,86.552,2.74678921]
[1646026075194,4.618,86.659,86.553,6.0]
[1646026075397,14.05,86.66,86.554,32.07359002]
[1646026075596,14.05,86.66,86.555,8.91513196]
[1646026075997,14.05,86.66,86.555,11.66192117]
[1646026076197,4.618,86.669,86.56,17.3285]
[1646026076395,4.618,86.669,86.561,8.42728636]
[1646026076396,6.0,86.668,86.561,8.42728636]
[1646026076597,4.618,86.667,86.561,11.17407557]
[1646026076799,4.618,86.667,86.562,2.74678921]
[1646026077097,6.0,86.668,86.563,6.0]
[1646026077296,6.0,86.668,86.564,4.618]
[1646026077497,4.618,86.676,86.565,6.0]
[1646026077498,17.3277,86.67,86.565,6.0]
[1646026077701,10.618,86.669,86.566,4.618]
[1646026077998,10.618,86.669,86.57,17.3282]
[1646026078197,10.618,86.669,86.571,13.2414703]
[1646026078599,6.0,86.669,86.572,115.6]
[1646026078798,6.0,86.669,86.573,7.07378458]
[1646026078999,4.617,86.676,86.574,6.0]
[1646026079201,4.617,86.676,86.575,4.617]
[1646026079403,4.617,86.687,86.58,14.05]
[1646026079602,4.617,86.687,86.581,54.02771636]
[1646026079800,4.617,86.687,86.582,3.08144759]
[1646026080002,10.617,86.676,86.583,6.0]
[1646026080199,6.0,86.676,86.584,4.617]
[1646026080403,7.36378921,86.675,86.582,3.08144759]
[1646026080801,115.6,86.674,86.582,3.08144759]
[1646026081001,4.617,86.673,86.582,3.08144759]
[1646026081202,17.3274,86.67,86.582,3.08144759]
[1646026082301,2.74678921,86.669,86.582,3.08144759]
[1646026082701,17.3298,86.66,86.582,3.08144759]
[1646026083703,4.617,86.659,86.582,3.08144759]
[1646026083924,17.3298,86.66,86.582,3.08144759]
[1646026084725,17.3298,86.66,86.583,6.0]
[1646026087026,6.0,86.659,86.583,6.0]
[1646026087427,8.74678921,86.659,86.583,6.0]
[1646026087627,2.74678921,86.658,86.583,6.0]
[1646026087827,4.617,86.657,86.583,6.0]
[1646026088231,2.74678921,86.656,86.583,6.0]
[1646026088428,2.74678921,86.656,86.582,3.08144759]
[1646026088627,2.74678921,86.656,86.583,6.0]
[1646026089226,2.74678921,86.656,86.582,3.08144759]
[1646026089427,2.74678921,86.656,86.583,6.0]
[1646026090028,2.74678921,86.656,86.582,3.08144759]
[1646026090431,2.74678921,86.656,86.583,6.0]
[1646026091441,10.617,86.655,86.583,6.0]
[1646026091631,10.617,86.655,86.582,3.08144759]
[1646026091831,2.74678921,86.654,86.582,3.08144759]
[1646026092330,6.0,86.655,86.583,6.0]
[1646026093131,4.617,86.676,86.585,2.88660522]
[1646026093334,6.0,86.675,86.587,115.6]
[1646026093533,17.3255,86.68,86.589,115.6]
[1646026093732,6.0,86.676,86.591,115.6]
[1646026093936,6.0,86.675,86.593,115.6]
[1646026094136,23.2805,86.693,86.601,115.6]
[1646026094331,23.2805,86.693,86.6,57.734]
[1646026094332,23.2805,86.693,86.603,115.6]
[1646026094531,23.2805,86.693,86.604,13.00649075]
[1646026094731,23.2805,86.693,86.604,7.00649075]
[1646026094934,23.2805,86.693,86.605,6.0]
[1646026095332,4.616,86.692,86.605,6.0]
[1646026095734,17.3224,86.69,86.605,6.0]
[1646026095936,4.616,86.689,86.605,6.0]
[1646026096533,4.616,86.689,86.611,45.30168664]
[1646026096736,4.616,86.689,86.612,6.0]
[1646026096935,4.616,86.689,86.612,8.75065515]
[1646026097135,17.3224,86.69,86.612,8.75065515]
[1646026097736,17.3224,86.69,86.62,17.321]
[1646026097936,23.2805,86.693,86.621,6.0]
[1646026098540,23.2805,86.693,86.613,6.0]
[1646026098737,4.616,86.713,86.622,2.74678921]
[1646026098944,6.0,86.718,86.631,115.6]
[1646026099138,6.0,86.718,86.633,115.6]
[1646026099338,6.0,86.718,86.634,8.34258939]
[1646026099537,6.0,86.718,86.634,2.34258939]
[1646026099738,4.614,86.729,86.635,6.0]
[1646026099940,4.614,86.729,86.65,17.3127]
[1646026100137,17.3156,86.72,86.635,8.74678921]
[1646026100338,4.614,86.719,86.635,6.0]
[1646026100540,4.614,86.719,86.625,6.0]
[1646026100740,4.614,86.719,86.63,14.05]
[1646026100941,4.614,86.719,86.631,6.0]
[1646026101142,4.614,86.719,86.631,9.1070804]
[1646026101540,4.614,86.719,86.641,47.68824614]
[1646026101738,4.614,86.719,86.642,6.0]
[1646026101939,4.614,86.719,86.642,8.48961264]
[1646026102638,17.3156,86.72,86.651,2.30437095]
[1646026102840,6.0,86.719,86.652,6.0]
[1646026103842,6.0,86.719,86.641,47.68824614]
[1646026104043,4.614,86.737,86.642,6.0]
[1646026104241,4.614,86.737,86.642,9.08390109]
[1646026104443,26.87387177,86.721,86.642,9.08390109]
[1646026104642,4.614,86.72,86.642,9.08390109]
[1646026104843,4.614,86.735,86.642,9.08390109]
[1646026105244,26.87387177,86.734,86.642,9.08390109]
[1646026105444,17.3174,86.71,86.642,9.08390109]
[1646026106452,17.3203,86.7,86.642,6.0]
[1646026106649,17.3203,86.7,86.631,6.0]
[1646026106849,17.3203,86.7,86.631,8.83484564]
[1646026107050,17.3203,86.7,86.631,6.0]
[1646026107249,4.615,86.699,86.615,55.77644408]
[1646026107449,4.615,86.718,86.616,6.0]
[1646026107650,6.0,86.717,86.616,8.27139009]
[1646026107849,4.615,86.716,86.616,8.27139009]
[1646026108250,17.3206,86.69,86.616,8.27139009]
[1646026108450,4.616,86.689,86.616,8.27139009]
[1646026108650,4.616,86.699,86.616,8.27139009]
[1646026109453,17.324,86.68,86.616,8.27139009]
[1646026110075,2.74678921,86.679,86.616,8.27139009]
[1646026110256,2.74678921,86.679,86.616,2.27139009]
[1646026110456,17.3252,86.67,86.616,2.27139009]
[1646026110856,17.3252,86.67,86.6,17.3258]
[1646026110857,2.74678921,86.669,86.592,2.51940408]
[1646026111059,4.616,86.668,86.585,2.9472103]
[1646026111258,6.0,86.667,86.585,2.9472103]
[1646026111459,4.616,86.666,86.585,2.9472103]
[1646026111660,7.36278921,86.666,86.614,48.17160941]
[1646026111858,17.3298,86.66,86.614,48.17160941]
[1646026112058,1.69207576,86.748,86.615,2.25010461]
[1646026112257,17.0213,86.752,86.616,6.0]
[1646026112458,14.05,86.77,86.617,115.6]
[1646026112658,4.615,86.758,86.621,115.6]
[1646026112860,17.3124,86.74,86.64,17.3109]
[1646026113060,17.3124,86.74,86.643,115.6]
[1646026113258,17.3124,86.74,86.646,2.28752221]
[1646026113460,4.614,86.769,86.651,115.6]
[1646026113658,6.0,86.768,86.653,115.6]
[1646026113858,4.613,86.767,86.655,115.6]
[1646026114062,4.613,86.767,86.66,14.05]
[1646026114361,4.613,86.767,86.661,8.43795712]
[1646026114561,4.613,86.767,86.67,17.3115]
[1646026114562,17.3102,86.75,86.67,17.3115]
[1646026114761,17.3102,86.75,86.671,48.17160941]
[1646026114960,4.613,86.749,86.672,2.82368808]
[1646026115360,4.613,86.758,86.673,6.0]
[1646026116464,17.3127,86.74,86.673,6.0]
[1646026118693,17.3098,86.75,86.673,6.0]
[1646026118895,4.613,86.756,86.681,2.34265954]
[1646026119093,22.5434,86.757,86.682,6.0]
[1646026119994,10.612,86.756,86.681,2.34265954]
[1646026120195,10.612,86.756,86.672,2.49973948]
[1646026120393,10.612,86.756,86.673,6.0]
[1646026120594,10.612,86.756,86.672,2.49973948]
[1646026121201,10.612,86.756,86.673,6.0]
[1646026121695,17.31,86.75,86.673,6.0]
[1646026121899,4.612,86.749,86.673,6.0]
[1646026122296,4.613,86.755,86.672,2.49973948]
[1646026123398,4.612,86.756,86.672,2.49973948]
[1646026123598,17.3132,86.74,86.672,2.49973948]
[1646026123798,17.3132,86.74,86.673,6.0]
[1646026124598,17.3132,86.74,86.68,17.3098]
[1646026124798,17.3132,86.74,86.681,2.81158735]
[1646026125900,17.3132,86.74,86.682,6.0]
[1646026126104,6.0,86.739,86.681,2.81158735]
[1646026126301,6.0,86.739,86.672,2.32358151]
[1646026126602,17.3137,86.73,86.672,2.32358151]
[1646026127809,6.0,86.739,86.672,2.32358151]
[1646026128006,17.3114,86.74,86.673,6.0]
[1646026129610,17.3114,86.74,86.68,17.3098]
[1646026129807,17.3114,86.74,86.681,8.51928996]
[1646026130310,17.3114,86.74,86.681,6.0]
[1646026130507,17.3114,86.74,86.673,6.0]
[1646026138936,17.3114,86.74,86.673,5.0]
[1646026139741,17.3136,86.73,86.65,17.3145]
[1646026139938,4.614,86.729,86.651,3.05068729]
[1646026140136,4.614,86.729,86.645,3.03812734]
[1646026140341,9.6363437,86.728,86.645,3.03812734]
[1646026140638,120.214,86.727,86.645,3.03812734]
[1646026140837,4.614,86.727,86.645,3.03812734]
[1646026141044,4.614,86.733,86.645,3.03812734]
[1646026141238,17.3197,86.71,86.645,3.03812734]
[1646026141437,4.614,86.709,86.645,3.03812734]
[1646026144342,17.3197,86.71,86.645,3.03812734]
[1646026145945,4.614,86.709,86.645,3.03812734]
[1646026146246,17.3201,86.7,86.645,3.03812734]
[1646026151552,4.615,86.713,86.645,3.03812734]
[1646026151750,24.0994,86.719,86.646,6.0]
[1646026151951,6.0,86.718,86.646,6.0]
[1646026152353,9.64871232,86.717,86.646,6.0]
[1646026152752,24.0994,86.719,86.646,6.0]
[1646026153156,9.65050549,86.718,86.646,6.0]
[1646026153653,9.65050549,86.718,86.651,2.85340084]
[1646026153859,9.65050549,86.718,86.652,6.0]
[1646026156357,28.7134,86.719,86.652,6.0]
[1646026156358,24.0994,86.719,86.66,17.3138]
[1646026156556,4.614,86.734,86.661,3.08729431]
[1646026156758,24.8334,86.737,86.662,6.0]
[1646026156957,9.66847168,86.733,86.662,6.0]
[1646026157357,9.66847168,86.734,86.662,6.0]
[1646026157560,9.66847168,86.734,86.671,41.01096787]
[1646026157758,85.96008522,86.739,86.672,8.77112809]
[1646026157959,57.7094,86.76,86.672,8.77112809]
[1646026158161,56.3308,86.759,86.674,2.64823621]
[1646026158361,66.01145827,86.759,86.675,6.0]
[1646026158863,9.68065827,86.758,86.675,6.0]
[1646026159460,17.3095,86.75,86.68,17.3092]
[1646026159661,17.3095,86.75,86.681,8.63161115]
[1646026160064,9.68065827,86.749,86.681,8.63161115]
[1646026173900,9.68065827,86.749,86.69,17.3079]
[1646026174100,9.68065827,86.749,86.691,9.11712685]
[1646026178708,9.68065827,86.749,86.701,54.23322869]
[1646026178912,80.65200423,86.781,86.703,3.01942658]
[1646026179107,4.612,86.809,86.705,115.6]
[1646026179305,23.3161,86.81,86.708,2.62998796]
[1646026179507,23.3161,86.81,86.731,115.6]
[1646026179705,9.73778207,86.809,86.741,38.75670409]
[1646026179906,9.73778207,86.809,86.75,17.2944]
[1646026180106,15.69600912,86.827,86.751,2.83895416]
[1646026180306,10.608,86.826,86.752,8.74985768]
[1646026180707,17.2961,86.82,86.752,8.74985768]
[1646026181311,9.73778207,86.819,86.752,8.74985768]
[1646026181511,4.609,86.818,86.752,2.74985768]
[1646026181711,4.609,86.818,86.741,2.6737041]
[1646026181909,24.2808,86.817,86.736,2.56075819]
[1646026182114,4.609,86.816,86.736,2.56075819]
[1646026182411,17.2973,86.81,86.738,49.45816362]
[1646026182609,4.609,86.809,86.739,8.78003918]
[1646026182810,17.2973,86.81,86.739,8.78003918]
[1646026183012,9.73778207,86.808,86.739,8.78003918]
[1646026183211,4.609,86.807,86.739,8.78003918]
[1646026183411,9.73778207,86.807,86.739,8.78003918]
[1646026183615,9.73778207,86.807,86.741,2.69683436]
[1646026183910,14.34678207,86.806,86.741,2.69683436]
[1646026184411,17.2992,86.8,86.741,2.69683436]
[1646026184610,4.609,86.799,86.741,2.69683436]
[1646026185018,17.2992,86.8,86.741,2.69683436]
[1646026185414,9.70781082,86.799,86.741,2.69683436]
[1646026185813,17.2992,86.8,86.742,6.0]
[1646026187624,17.2992,86.8,86.741,2.69683436]
[1646026188019,17.2992,86.8,86.742,6.0]
[1646026188521,24.2808,86.817,86.75,17.2956]
[1646026188843,24.2808,86.817,86.751,2.74782109]
[1646026189019,24.2808,86.817,86.752,6.0]
[1646026189220,9.70746105,86.816,86.752,6.0]
[1646026190320,24.2808,86.817,86.752,6.0]
[1646026191822,4.609,86.845,86.761,2.73271725]
[1646026192024,1.60032849,86.855,86.76,132.8936]
[1646026192025,23.4752,86.856,86.771,46.35463918]
[1646026192323,9.72910608,86.855,86.773,2.56704359]
[1646026192522,9.72910608,86.855,86.776,2.94852061]
[1646026192723,9.72910608,86.855,86.78,129.65]
[1646026192920,9.72910608,86.855,86.781,8.51276865]
[1646026193321,23.4752,86.856,86.781,8.51276865]
[1646026193522,23.4752,86.856,86.79,17.2861]
[1646026193724,23.4752,86.856,86.791,8.70052342]
[1646026195524,23.4752,86.856,86.8,17.2843]
[1646026195724,23.4752,86.856,86.801,58.17185073]
[1646026195924,23.4752,86.856,86.802,2.73214412]
[1646026196126,23.4752,86.856,86.803,6.0]
[1646026199427,23.4752,86.856,86.802,2.73214412]
[1646026200429,23.4752,86.856,86.803,6.0]
[1646026200726,23.4752,86.856,86.802,2.73214412]
[1646026201127,17.2848,86.87,86.803,6.0]
[1646026201329,6.0,86.869,86.811,3.00449349]
[1646026201530,23.9751,86.888,86.812,28.9731]
[1646026201731,6.0,86.887,86.813,2.75840485]
[1646026201927,6.0,86.887,86.814,6.0]
[1646026202129,9.71043661,86.886,86.814,6.0]
[1646026202329,9.71043661,86.886,86.82,132.8803]
[1646026202528,9.71043661,86.886,86.821,6.0]
[1646026202730,9.71043661,86.886,86.823,3.0111419]
[1646026202931,44.76550443,86.929,86.825,115.6]
[1646026203130,40.16050443,86.929,86.841,115.6]
[1646026203329,9.74027559,86.928,86.86,132.8716]
[1646026203528,9.74027559,86.928,86.861,8.74606696]
[1646026203728,50.36056692,86.927,86.862,43.53176916]
[1646026203931,50.36056692,86.927,86.863,8.31823372]
[1646026204130,9.74027559,86.926,86.863,8.31823372]
[1646026204530,9.74027559,86.926,86.87,17.2718]
[1646026204730,9.74027559,86.926,86.871,8.96195411]
[1646026205330,9.74027559,86.926,86.871,2.96195411]
[1646026205932,6.0,86.925,86.871,2.96195411]
[1646026206133,9.74027559,86.924,86.851,2.58942954]
[1646026206334,9.74027559,86.924,86.852,6.0]
[1646026206733,9.74027559,86.923,86.852,6.0]
[1646026207134,9.74027559,86.922,86.854,2.7025131]
[1646026207335,9.74027559,86.922,86.855,6.0]
[1646026207536,9.74027559,86.921,86.861,2.59143262]
[1646026207735,9.74027559,86.921,86.862,6.0]
[1646026207935,50.36056692,86.927,86.862,6.0]
[1646026208134,50.36056692,86.927,86.863,115.6]
[1646026208335,50.36056692,86.927,86.865,115.6]
[1646026208538,50.36056692,86.927,86.868,2.96731512]
[1646026208835,50.36056692,86.927,86.87,2.9429987]
[1646026209136,24.4377,86.929,86.88,17.2691]
[1646026209338,17.2687,86.95,86.881,8.90230582]
[1646026209538,6.0,86.949,86.882,22.6162]
[1646026209736,6.0,86.949,86.883,8.71526515]
[1646026209936,15.64012856,86.948,86.883,8.71526515]
[1646026210138,48.76140256,86.947,86.884,33.27040677]
[1646026210336,58.40153112,86.947,86.885,8.92334742]
[1646026210537,58.40153112,86.947,86.89,17.2677]
[1646026210737,9.64012856,86.946,86.891,9.10522004]
[1646026211558,48.76140256,86.947,86.891,9.10522004]
[1646026212657,48.76140256,86.947,86.891,6.0]
[1646026212859,14.22488879,86.946,86.884,6.0]
[1646026213058,14.22488879,86.946,86.872,3.0664246]
[1646026213059,14.22488879,86.946,86.873,6.0]
[1646026213258,9.62388879,86.945,86.873,6.0]
[1646026213458,4.602,86.944,86.874,55.74896363]
[1646026213659,9.62388879,86.945,86.875,9.06393839]
[1646026214060,24.3852,86.946,86.875,9.06393839]
[1646026214061,24.3852,86.946,86.88,14.05]
[1646026214260,24.3852,86.946,86.881,8.55609259]
[1646026214865,6.0,86.945,86.881,8.55609259]
[1646026215261,4.602,86.944,86.881,8.55609259]
[1646026215463,6.0,86.945,86.881,8.55609259]
[1646026216666,10.602,86.945,86.881,8.55609259]
[1646026216865,10.602,86.945,86.881,6.0]
[1646026217065,10.602,86.945,86.877,6.0]
[1646026217467,10.602,86.945,86.879,2.92901455]
[1646026217664,10.602,86.945,86.88,6.0]
[1646026217665,17.2709,86.94,86.88,6.0]
[1646026219566,24.3852,86.946,86.88,23.2683]
[1646026219771,24.3852,86.946,86.881,2.95289081]
[1646026219966,24.3852,86.946,86.882,6.0]
[1646026221367,6.0,86.945,86.882,6.0]
[1646026221768,6.0,86.945,86.881,2.95289081]
[1646026222169,6.0,86.945,86.882,6.0]
[1646026225772,17.2711,86.94,86.882,6.0]
[1646026226373,17.2711,86.94,86.852,6.0]
[1646026226873,17.2711,86.94,86.853,50.0160302]
[1646026227073,17.2711,86.94,86.854,8.82593061]
[1646026227480,17.2711,86.94,86.86,17.2724]
[1646026227676,17.2711,86.94,86.861,8.6061254]
[1646026228776,17.2711,86.94,86.871,2.3632756]
[1646026228978,17.2711,86.94,86.872,6.0]
[1646026229582,24.3852,86.946,86.872,6.0]
[1646026229777,6.0,86.945,86.881,2.75994558]
[1646026229980,6.0,86.945,86.882,6.0]
[1646026230777,38.44762005,86.944,86.883,42.97390258]
[1646026230978,38.44762005,86.944,86.884,8.64828078]
[1646026233382,6.0,86.943,86.884,8.64828078]
[1646026233780,24.3852,86.946,86.89,17.2664]
[1646026233979,4.602,86.979,86.891,8.95734318]
[1646026234183,30.811,86.968,86.892,24.5575]
[1646026234380,30.811,86.968,86.893,8.58255495]
[1646026234581,40.02838525,86.967,86.893,8.58255495]
[1646026235881,4.601,86.966,86.893,8.58255495]
[1646026236281,17.2669,86.96,86.893,8.58255495]
[1646026236480,17.2669,86.96,86.893,2.58255495]
[1646026236880,17.2669,86.96,86.883,42.97390258]
[1646026236881,4.601,86.959,86.884,3.09609384]
[1646026237081,6.30476344,86.959,86.885,6.0]
[1646026237285,115.6,86.957,86.863,8.49718144]
[1646026237484,4.602,86.956,86.863,8.49718144]
[1646026237683,129.83238461,86.956,86.863,8.49718144]
[1646026237882,1.5873141,86.955,86.863,8.49718144]
[1646026238082,4.602,86.954,86.864,49.97781688]
[1646026238283,1.49274052,86.952,86.863,2.49718144]
[1646026238482,17.2721,86.94,86.863,2.49718144]
[1646026238682,120.202,86.939,86.863,2.49718144]
[1646026238883,115.6,86.937,86.828,51.36922812]
[1646026239082,142.7754,86.936,86.829,2.56124035]
[1646026239282,13.33168197,86.935,86.842,54.09905897]
[1646026239482,4.603,86.934,86.843,3.06868475]
[1646026239683,9.63038461,86.934,86.844,28.7798]
[1646026239883,9.63038461,86.934,86.845,2.6363063]
[1646026240187,9.63038461,86.934,86.846,6.0]
[1646026240583,17.2761,86.92,86.846,6.0]
[1646026240782,24.0499,86.919,86.846,6.0]
[1646026242284,17.2769,86.91,86.846,6.0]
[1646026243787,24.0499,86.919,86.846,6.0]
[1646026244187,6.0,86.918,86.846,6.0]
[1646026244586,6.0,86.918,86.847,25.44628276]
[1646026244788,24.0499,86.919,86.85,17.2737]
[1646026244988,24.0499,86.919,86.851,8.54917346]
[1646026246486,6.0,86.918,86.851,6.0]
[1646026246686,6.0,86.918,86.846,6.0]
[1646026247087,24.0499,86.919,86.846,6.0]
[1646026248592,9.66963623,86.918,86.846,6.0]
[1646026250891,9.66963623,86.918,86.851,2.58975398]
[1646026251090,9.66963623,86.918,86.852,6.0]
[1646026251289,9.66963623,86.918,86.852,8.74678921]
[1646026251590,9.66963623,86.918,86.853,2.74678921]
[1646026251789,9.66963623,86.918,86.854,6.0]
[1646026251991,9.66963623,86.918,86.855,4.603]
[1646026252190,9.66963623,86.918,86.856,6.0]
[1646026252388,9.66963623,86.934,86.857,4.603]
[1646026252611,34.31503623,86.934,86.86,17.2708]
[1646026252789,34.31503623,86.934,86.861,8.8451908]
[1646026253192,9.66963623,86.934,86.861,8.8451908]
[1646026253389,9.66963623,86.933,86.862,7.34978921]
[1646026253592,9.66963623,86.933,86.863,6.0]
[1646026253890,9.66963623,86.934,86.871,41.98735907]
[1646026254091,40.45833825,86.959,86.872,6.0]
[1646026254092,9.66963623,86.932,86.872,6.0]
[1646026254289,9.66963623,86.932,86.859,2.27366955]
[1646026254489,29.4483,86.931,86.859,2.27366955]
[1646026254892,9.66963623,86.93,86.859,2.27366955]
[1646026255094,4.603,86.929,86.86,45.4214101]
[1646026255294,17.276,86.92,86.861,2.76173159]
[1646026255694,9.66963623,86.919,86.861,2.76173159]
[1646026256594,17.2766,86.91,86.861,2.76173159]
[1646026256993,39.26957173,86.908,86.861,2.76173159]
[1646026257297,9.66963623,86.907,86.861,2.76173159]
[1646026257693,4.603,86.93,86.861,2.76173159]
[1646026257893,24.8453,86.931,86.862,6.0]
[1646026258298,17.2747,86.92,86.861,2.76173159]
[1646026258695,9.54521472,86.919,86.861,2.76173159]
[1646026259597,17.2766,86.91,86.842,2.81448139]
[1646026259799,17.2766,86.91,86.843,6.0]
[1646026260197,9.54521472,86.909,86.843,6.0]
[1646026260596,17.2787,86.9,86.845,2.97116486]
[1646026260900,11.89877795,86.899,86.846,6.0]
[1646026261097,21.44399267,86.899,86.846,6.0]
[1646026261500,9.54521472,86.898,86.846,6.0]
[1646026265002,17.2809,86.89,86.832,2.26073141]
[1646026265202,17.2809,86.89,86.828,4.604]
[1646026265414,17.2809,86.89,86.79,14.05]
[1646026265415,45.0,86.888,86.79,14.05]
[1646026265604,117.38570807,86.887,86.756,49.0519]
[1646026265907,115.6,86.859,86.743,112.6]
[1646026266107,4.608,86.858,86.743,112.6]
[1646026266408,1.47437216,86.848,86.716,115.6]
[1646026266705,1.47437216,86.848,86.715,49.0519]
[1646026266706,115.6,86.846,86.715,49.0519]
[1646026266902,4.609,86.845,86.716,51.56047339]
[1646026267103,115.6,86.829,86.716,51.56047339]
[1646026267303,115.6,86.826,86.716,51.56047339]
[1646026267505,4.609,86.825,86.681,48.4027]
[1646026267730,1.60062815,86.815,86.681,48.4027]
[1646026267932,115.6,86.799,86.67,269.4788725]
[1646026268131,6.10208991,86.798,86.671,6.0]
[1646026268330,17.3114,86.76,86.671,6.0]
[1646026268531,1.58948905,86.758,86.672,44.91324865]
[1646026268734,4.612,86.757,86.673,6.0]